[Event "Titled Tuesday Blitz August 1 Early 2023"]
[White "Boraso, Alessio"]
[Black "Dau Khuong Duy"]
[WhiteFideId "848077"]
[BlackFideId "12424722"]
[WhiteElo "2474"]
[BlackElo "2891"]
[Result "0-1"]
[Round "1"]
[TimeControl "180+1"]
[Date "2023.08.01"]
[WhiteClock "0:00:02"]
[BlackClock "0:00:12"]
[Board "33"]

1. e4 {[%clk 0:02:59]}  c5 {[%clk 0:02:59]} 2. c3 {[%clk 0:02:56]}  Nf6 {[%clk 0:02:59]} 3. e5 {[%clk 0:02:56]}  Nd5 {[%clk 0:02:59]} 4. d4 {[%clk 0:02:57]}  cxd4 {[%clk 0:02:59]} 5. cxd4 {[%clk 0:02:58]}  d6 {[%clk 0:02:57]} 6. Nf3 {[%clk 0:02:59]}  Nc6 {[%clk 0:02:57]} 7. Bc4 {[%clk 0:02:57]}  Nb6 {[%clk 0:02:56]} 8. Bb5 {[%clk 0:02:56]}  Bd7 {[%clk 0:02:45]} 9. exd6 {[%clk 0:02:51]}  exd6 {[%clk 0:02:46]} 10. O-O {[%clk 0:02:50]}  Be7 {[%clk 0:02:44]} 11. Nc3 {[%clk 0:02:49]}  O-O {[%clk 0:02:44]} 12. Re1 {[%clk 0:02:49]}  Re8 {[%clk 0:02:42]} 13. Bf4 {[%clk 0:02:44]}  a6 {[%clk 0:02:23]} 14. Bd3 {[%clk 0:02:33]}  d5 {[%clk 0:02:12]} 15. Ne5 {[%clk 0:02:27]}  g6 {[%clk 0:01:59]} 16. Bc2 {[%clk 0:02:01]}  Bf6 {[%clk 0:01:57]} 17. Bb3 {[%clk 0:01:53]}  Be6 {[%clk 0:01:34]} 18. Nxc6 {[%clk 0:01:49]}  bxc6 {[%clk 0:01:35]} 19. Rc1 {[%clk 0:01:47]}  Rc8 {[%clk 0:01:31]} 20. Na4 {[%clk 0:01:43]}  Nxa4 {[%clk 0:01:26]} 21. Bxa4 {[%clk 0:01:43]}  Qb6 {[%clk 0:01:26]} 22. Be5 {[%clk 0:01:36]}  Bxe5 {[%clk 0:01:22]} 23. Rxe5 {[%clk 0:01:34]}  Qxb2 {[%clk 0:01:18]} 24. Rxc6 {[%clk 0:01:29]}  Rxc6 {[%clk 0:01:08]} 25. Bxc6 {[%clk 0:01:30]}  Rc8 {[%clk 0:01:09]} 26. Re2 {[%clk 0:00:46]}  Qa3 {[%clk 0:01:07]} 27. Rc2 {[%clk 0:00:42]}  Bf5 {[%clk 0:00:40]} 28. Rc5 {[%clk 0:00:34]}  Rb8 {[%clk 0:00:33]} 29. Rc1 {[%clk 0:00:24]}  Qxa2 {[%clk 0:00:34]} 30. h4 {[%clk 0:00:23]}  h5 {[%clk 0:00:26]} 31. Qf3 {[%clk 0:00:23]}  Be6 {[%clk 0:00:16]} 32. Qf4 {[%clk 0:00:22]}  Rb1 {[%clk 0:00:13]} 33. Kh2 {[%clk 0:00:14]}  Rxc1 {[%clk 0:00:13]} 34. Qxc1 {[%clk 0:00:15]}  Qxf2 {[%clk 0:00:10]} 35. Qc5 {[%clk 0:00:10]}  Qxh4+ {[%clk 0:00:11]} 36. Kg1 {[%clk 0:00:11]}  Qe1+ {[%clk 0:00:11]} 37. Kh2 {[%clk 0:00:10]}  Qe4 {[%clk 0:00:12]} 38. Qe7 {[%clk 0:00:09]}  Qxd4 {[%clk 0:00:11]} 39. Be8 {[%clk 0:00:07]}  Qe5+ {[%clk 0:00:11]} 40. Kh1 {[%clk 0:00:02]}  Qe1+ {[%clk 0:00:10]} 41. Kh2 {[%clk 0:00:03]}  Qe5+ {[%clk 0:00:09]} 42. Kh1 {[%clk 0:00:04]}  Qf4 {[%clk 0:00:10]} 43. Bc6 {[%clk 0:00:03]}  d4 {[%clk 0:00:10]} 44. Qd8+ {[%clk 0:00:03]}  Kg7 {[%clk 0:00:11]} 45. Bf3 {[%clk 0:00:04]}  Qe3 {[%clk 0:00:10]} 46. Qe7 {[%clk 0:00:03]}  d3 {[%clk 0:00:10]} 47. Qa3 {[%clk 0:00:02]}  Bg4 {[%clk 0:00:09]} 48. Qc3+ {[%clk 0:00:02]}  Kh7 {[%clk 0:00:10]} 49. Qf6 {[%clk 0:00:02]}  Qe6 {[%clk 0:00:08]} 50. Qd4 {[%clk 0:00:02]}  Bxf3 {[%clk 0:00:09]} 51. gxf3 {[%clk 0:00:02]}  Qe1+ {[%clk 0:00:09]} 52. Kg2 {[%clk 0:00:02]}  d2 {[%clk 0:00:10]} 53. Qf6 {[%clk 0:00:02]}  Kg8 {[%clk 0:00:10]} 54. Qd8+ {[%clk 0:00:01]}  Kg7 {[%clk 0:00:10]} 55. Qd4+ {[%clk 0:00:02]}  Kh7 {[%clk 0:00:11]} 56. Qf6 {[%clk 0:00:02]}  Qe6 {[%clk 0:00:10]} 57. Qd4 {[%clk 0:00:02]}  Qe2+ {[%clk 0:00:10]} 58. Kg3 {[%clk 0:00:01]}  d1=Q {[%clk 0:00:11]} 59. Qf6 {[%clk 0:00:02]}  Qg1+ {[%clk 0:00:11]} 60. Kf4 {[%clk 0:00:02]}  Qee3# {[%clk 0:00:12]} 0-1


[Site "https://www.chess.com"]

[Event "Titled Tuesday Blitz August 1 Early 2023"]
[White "Yeritsyan, Hayk"]
[Black "Harshavardhan G B"]
[WhiteFideId "13307320"]
[BlackFideId "25059009"]
[WhiteElo "2471"]
[BlackElo "2886"]
[Result "0-1"]
[Round "1"]
[TimeControl "180+1"]
[Date "2023.08.01"]
[WhiteClock "0:00:30"]
[BlackClock "0:01:22"]
[Board "35"]

1. d4 {[%clk 0:03:00]}  Nf6 {[%clk 0:02:59]} 2. Nf3 {[%clk 0:03:01]}  g6 {[%clk 0:02:58]} 3. Bf4 {[%clk 0:03:02]}  Bg7 {[%clk 0:02:58]} 4. h3 {[%clk 0:03:02]}  d6 {[%clk 0:02:58]} 5. e3 {[%clk 0:03:03]}  O-O {[%clk 0:02:58]} 6. c3 {[%clk 0:03:04]}  Nc6 {[%clk 0:02:58]} 7. Be2 {[%clk 0:03:04]}  Nd7 {[%clk 0:02:58]} 8. O-O {[%clk 0:03:05]}  e5 {[%clk 0:02:58]} 9. Bh2 {[%clk 0:03:06]}  Qe7 {[%clk 0:02:57]} 10. Na3 {[%clk 0:03:04]}  Rd8 {[%clk 0:02:54]} 11. Nc4 {[%clk 0:03:04]}  Nf8 {[%clk 0:02:50]} 12. Rc1 {[%clk 0:03:04]}  b6 {[%clk 0:02:47]} 13. a3 {[%clk 0:02:59]}  Bb7 {[%clk 0:02:47]} 14. b4 {[%clk 0:02:59]}  a5 {[%clk 0:02:45]} 15. Qb3 {[%clk 0:02:57]}  axb4 {[%clk 0:02:31]} 16. axb4 {[%clk 0:02:55]}  exd4 {[%clk 0:02:28]} 17. cxd4 {[%clk 0:02:55]}  Nxd4 {[%clk 0:02:28]} 18. Nxd4 {[%clk 0:02:55]}  Bxd4 {[%clk 0:02:27]} 19. exd4 {[%clk 0:02:43]}  Qxe2 {[%clk 0:02:24]} 20. Ne3 {[%clk 0:02:42]}  Rd7 {[%clk 0:02:20]} 21. Rc2 {[%clk 0:02:32]}  Qh5 {[%clk 0:02:19]} 22. Rfc1 {[%clk 0:02:31]}  Ne6 {[%clk 0:02:14]} 23. Qd3 {[%clk 0:02:08]}  Ng5 {[%clk 0:01:30]} 24. Rxc7 {[%clk 0:01:51]}  Rxc7 {[%clk 0:01:31]} 25. Rxc7 {[%clk 0:01:50]}  Bxg2 {[%clk 0:01:28]} 26. Nxg2 {[%clk 0:00:42]}  Ra1+ {[%clk 0:01:25]} 27. Ne1 {[%clk 0:00:42]}  Nf3+ {[%clk 0:01:22]} 28. Kg2 {[%clk 0:00:30]} 0-1


[Site "https://www.chess.com"]

[Event "Titled Tuesday Blitz August 1 Early 2023"]
[White "Harsh Suresh"]
[Black "MFatigue"]
[WhiteFideId "45018464"]
[WhiteElo "2885"]
[BlackElo "2470"]
[Result "1-0"]
[Round "1"]
[TimeControl "180+1"]
[Date "2023.08.01"]
[WhiteClock "0:00:07"]
[BlackClock "0:00:23"]
[Board "36"]

1. d4 {[%clk 0:03:00]}  d5 {[%clk 0:02:59]} 2. c4 {[%clk 0:03:00]}  c6 {[%clk 0:03:00]} 3. Nf3 {[%clk 0:02:57]}  Nf6 {[%clk 0:03:00]} 4. g3 {[%clk 0:02:54]}  dxc4 {[%clk 0:03:00]} 5. Bg2 {[%clk 0:02:54]}  b5 {[%clk 0:03:00]} 6. O-O {[%clk 0:02:52]}  Bb7 {[%clk 0:03:01]} 7. Qc2 {[%clk 0:02:45]}  e6 {[%clk 0:03:01]} 8. Rd1 {[%clk 0:02:42]}  Be7 {[%clk 0:03:01]} 9. Nbd2 {[%clk 0:02:40]}  Nbd7 {[%clk 0:02:58]} 10. b3 {[%clk 0:02:39]}  cxb3 {[%clk 0:02:56]} 11. Nxb3 {[%clk 0:02:40]}  O-O {[%clk 0:02:50]} 12. Ne5 {[%clk 0:02:29]}  Qb6 {[%clk 0:02:43]} 13. Nxc6 {[%clk 0:02:23]}  Bxc6 {[%clk 0:02:37]} 14. Qxc6 {[%clk 0:02:22]}  Rac8 {[%clk 0:02:26]} 15. Qxb6 {[%clk 0:02:19]}  axb6 {[%clk 0:02:27]} 16. e4 {[%clk 0:02:07]}  Bb4 {[%clk 0:02:20]} 17. Be3 {[%clk 0:02:03]}  Bc3 {[%clk 0:02:18]} 18. Rac1 {[%clk 0:02:01]}  b4 {[%clk 0:02:18]} 19. d5 {[%clk 0:01:50]}  exd5 {[%clk 0:02:16]} 20. exd5 {[%clk 0:01:51]}  Nc5 {[%clk 0:02:14]} 21. d6 {[%clk 0:01:44]}  Rfd8 {[%clk 0:02:08]} 22. Bxc5 {[%clk 0:01:00]}  bxc5 {[%clk 0:02:07]} 23. Na5 {[%clk 0:01:00]}  Bd4 {[%clk 0:01:28]} 24. Nb7 {[%clk 0:00:23]}  Rb8 {[%clk 0:01:27]} 25. Nxd8 {[%clk 0:00:17]}  Rxd8 {[%clk 0:01:28]} 26. Rxd4 {[%clk 0:00:06]}  cxd4 {[%clk 0:01:27]} 27. Rc4 {[%clk 0:00:07]}  Kf8 {[%clk 0:00:51]} 28. Rxd4 {[%clk 0:00:06]}  Rb8 {[%clk 0:00:39]} 29. Bc6 {[%clk 0:00:06]}  Rd8 {[%clk 0:00:22]} 30. Kg2 {[%clk 0:00:04]}  Ne8 {[%clk 0:00:21]} 31. d7 {[%clk 0:00:04]}  Nf6 {[%clk 0:00:21]} 32. Rxb4 {[%clk 0:00:04]}  Nxd7 {[%clk 0:00:21]} 33. Rd4 {[%clk 0:00:04]}  Ke7 {[%clk 0:00:21]} 34. Rxd7+ {[%clk 0:00:04]}  Rxd7 {[%clk 0:00:22]} 35. Bxd7 {[%clk 0:00:05]}  Kxd7 {[%clk 0:00:23]} 36. Kf3 {[%clk 0:00:06]}  Kd6 {[%clk 0:00:23]} 37. Ke4 {[%clk 0:00:06]}  f6 {[%clk 0:00:23]} 38. Kf5 {[%clk 0:00:06]}  g6+ {[%clk 0:00:23]} 39. Kxf6 {[%clk 0:00:07]} 1-0


[Site "https://www.chess.com"]

[Event "Titled Tuesday Blitz August 1 Early 2023"]
[White "Rama, Tejas"]
[Black "Zhigalko, Sergei"]
[WhiteFideId "30907381"]
[BlackFideId "13502956"]
[WhiteElo "2468"]
[BlackElo "2882"]
[Result "0-1"]
[Round "1"]
[TimeControl "180+1"]
[Date "2023.08.01"]
[WhiteClock "0:00:00"]
[BlackClock "0:01:20"]
[Board "37"]

1. d4 {[%clk 0:02:39]}  Nf6 {[%clk 0:02:43]} 2. c4 {[%clk 0:02:37]}  e6 {[%clk 0:02:43]} 3. Nf3 {[%clk 0:02:33]}  b6 {[%clk 0:02:43]} 4. g3 {[%clk 0:02:21]}  Ba6 {[%clk 0:02:43]} 5. b3 {[%clk 0:02:20]}  Bb4+ {[%clk 0:02:43]} 6. Bd2 {[%clk 0:02:00]}  Be7 {[%clk 0:02:43]} 7. Nc3 {[%clk 0:01:59]}  O-O {[%clk 0:02:42]} 8. e4 {[%clk 0:01:58]}  d5 {[%clk 0:02:42]} 9. cxd5 {[%clk 0:01:23]}  Bxf1 {[%clk 0:02:43]} 10. Kxf1 {[%clk 0:01:23]}  exd5 {[%clk 0:02:43]} 11. e5 {[%clk 0:01:24]}  Ne4 {[%clk 0:02:44]} 12. Kg2 {[%clk 0:01:23]}  Qd7 {[%clk 0:02:42]} 13. Re1 {[%clk 0:01:22]}  Nxc3 {[%clk 0:02:42]} 14. Bxc3 {[%clk 0:01:22]}  Nc6 {[%clk 0:02:43]} 15. Ng1 {[%clk 0:01:13]}  f5 {[%clk 0:02:31]} 16. exf6 {[%clk 0:00:44]}  Bxf6 {[%clk 0:02:31]} 17. Nf3 {[%clk 0:00:45]}  Rf7 {[%clk 0:02:18]} 18. Qd3 {[%clk 0:00:35]}  Raf8 {[%clk 0:02:18]} 19. b4 {[%clk 0:00:27]}  Bxd4 {[%clk 0:01:36]} 20. Bxd4 {[%clk 0:00:08]}  Rxf3 {[%clk 0:01:36]} 21. Qd2 {[%clk 0:00:07]}  Qf5 {[%clk 0:01:20]} 22. Re2 {[%clk 0:00:00]}  Rd3 {[%clk 0:01:20]} 0-1


[Site "https://www.chess.com"]

[Event "Titled Tuesday Blitz August 1 Early 2023"]
[White "Kravtsiv, Martyn"]
[Black "Garcia Almaguer, Juan Manuel"]
[WhiteFideId "14113147"]
[BlackFideId "5110491"]
[WhiteElo "2869"]
[BlackElo "2466"]
[Result "1-0"]
[Round "1"]
[TimeControl "180+1"]
[Date "2023.08.01"]
[WhiteClock "0:00:49"]
[BlackClock "0:00:23"]
[Board "40"]

1. e4 {[%clk 0:03:00]}  e5 {[%clk 0:02:58]} 2. Nf3 {[%clk 0:03:01]}  Nc6 {[%clk 0:02:42]} 3. Nc3 {[%clk 0:03:01]}  Nf6 {[%clk 0:02:42]} 4. a4 {[%clk 0:03:01]}  Bc5 {[%clk 0:02:36]} 5. Nxe5 {[%clk 0:03:00]}  Nxe5 {[%clk 0:02:35]} 6. d4 {[%clk 0:02:59]}  Bxd4 {[%clk 0:02:35]} 7. Qxd4 {[%clk 0:02:57]}  Nc6 {[%clk 0:02:36]} 8. Qd1 {[%clk 0:02:28]}  O-O {[%clk 0:02:23]} 9. Bc4 {[%clk 0:02:27]}  d6 {[%clk 0:02:20]} 10. O-O {[%clk 0:02:26]}  Be6 {[%clk 0:02:19]} 11. Bd3 {[%clk 0:02:18]}  d5 {[%clk 0:02:16]} 12. Bg5 {[%clk 0:02:17]}  d4 {[%clk 0:02:10]} 13. Ne2 {[%clk 0:02:16]}  h6 {[%clk 0:02:11]} 14. Bh4 {[%clk 0:02:15]}  g5 {[%clk 0:02:01]} 15. Bg3 {[%clk 0:02:14]}  Re8 {[%clk 0:01:58]} 16. Qd2 {[%clk 0:02:06]}  Bg4 {[%clk 0:01:46]} 17. f3 {[%clk 0:02:05]}  Bh5 {[%clk 0:01:46]} 18. Kh1 {[%clk 0:02:03]}  Ne5 {[%clk 0:01:44]} 19. Bxe5 {[%clk 0:01:43]}  Rxe5 {[%clk 0:01:45]} 20. Ng3 {[%clk 0:01:41]}  Bg6 {[%clk 0:01:44]} 21. f4 {[%clk 0:01:41]}  gxf4 {[%clk 0:01:32]} 22. Qxf4 {[%clk 0:01:42]}  Nd7 {[%clk 0:01:24]} 23. Qxh6 {[%clk 0:01:37]}  Qg5 {[%clk 0:01:23]} 24. Qxg5 {[%clk 0:01:36]}  Rxg5 {[%clk 0:01:24]} 25. Nf5 {[%clk 0:01:35]}  c5 {[%clk 0:01:22]} 26. h4 {[%clk 0:01:32]}  Rh5 {[%clk 0:01:07]} 27. g4 {[%clk 0:01:32]}  Rh8 {[%clk 0:01:03]} 28. h5 {[%clk 0:01:27]}  Ne5 {[%clk 0:01:01]} 29. Be2 {[%clk 0:01:18]}  c4 {[%clk 0:00:57]} 30. Kg2 {[%clk 0:01:16]}  Bxf5 {[%clk 0:00:54]} 31. Rxf5 {[%clk 0:01:15]}  Re8 {[%clk 0:00:54]} 32. Rd1 {[%clk 0:01:14]}  d3 {[%clk 0:00:52]} 33. cxd3 {[%clk 0:01:12]}  cxd3 {[%clk 0:00:53]} 34. Bxd3 {[%clk 0:01:11]}  Nxd3 {[%clk 0:00:54]} 35. Rxd3 {[%clk 0:01:11]}  Rxe4 {[%clk 0:00:54]} 36. Kf3 {[%clk 0:01:08]}  Rxa4 {[%clk 0:00:37]} 37. Rd8+ {[%clk 0:01:06]}  Kg7 {[%clk 0:00:38]} 38. Rxh8 {[%clk 0:01:05]}  Kxh8 {[%clk 0:00:39]} 39. Rxf7 {[%clk 0:01:05]}  Rb4 {[%clk 0:00:40]} 40. g5 {[%clk 0:01:02]}  Rxb2 {[%clk 0:00:39]} 41. h6 {[%clk 0:00:58]}  Rb6 {[%clk 0:00:25]} 42. Kf4 {[%clk 0:00:53]}  a5 {[%clk 0:00:25]} 43. Kf5 {[%clk 0:00:52]}  a4 {[%clk 0:00:26]} 44. g6 {[%clk 0:00:52]}  Rb5+ {[%clk 0:00:26]} 45. Ke4 {[%clk 0:00:50]}  Kg8 {[%clk 0:00:26]} 46. h7+ {[%clk 0:00:49]}  Kh8 {[%clk 0:00:23]} 47. Rf8+ {[%clk 0:00:49]} 1-0


[Site "https://www.chess.com"]

[Event "Titled Tuesday Blitz August 1 Early 2023"]
[White "Khubukshanov, Erdem"]
[Black "Romero Pallares, Daniel"]
[WhiteFideId "54114527"]
[BlackFideId "32025637"]
[WhiteElo "2860"]
[BlackElo "2461"]
[Result "1-0"]
[Round "1"]
[TimeControl "180+1"]
[Date "2023.08.01"]
[WhiteClock "0:02:00"]
[BlackClock "0:00:15"]
[Board "42"]

1. e4 {[%clk 0:02:58]}  g6 {[%clk 0:02:58]} 2. d4 {[%clk 0:02:58]}  Bg7 {[%clk 0:02:58]} 3. Nc3 {[%clk 0:02:58]}  d6 {[%clk 0:02:59]} 4. Be3 {[%clk 0:02:59]}  a6 {[%clk 0:02:59]} 5. a4 {[%clk 0:02:58]}  b6 {[%clk 0:02:55]} 6. Bd3 {[%clk 0:02:57]}  Nd7 {[%clk 0:02:52]} 7. Nf3 {[%clk 0:02:58]}  Bb7 {[%clk 0:02:52]} 8. O-O {[%clk 0:02:57]}  e6 {[%clk 0:02:53]} 9. Qd2 {[%clk 0:02:56]}  h6 {[%clk 0:02:52]} 10. Rfe1 {[%clk 0:02:56]}  Ne7 {[%clk 0:02:52]} 11. Rad1 {[%clk 0:02:57]}  g5 {[%clk 0:02:50]} 12. h3 {[%clk 0:02:55]}  Ng6 {[%clk 0:02:50]} 13. Ne2 {[%clk 0:02:54]}  O-O {[%clk 0:02:33]} 14. Ng3 {[%clk 0:02:53]}  c5 {[%clk 0:02:25]} 15. c3 {[%clk 0:02:53]}  Bc6 {[%clk 0:01:58]} 16. b3 {[%clk 0:02:52]}  b5 {[%clk 0:01:48]} 17. d5 {[%clk 0:02:45]}  exd5 {[%clk 0:01:30]} 18. exd5 {[%clk 0:02:46]}  Bb7 {[%clk 0:01:29]} 19. axb5 {[%clk 0:02:46]}  axb5 {[%clk 0:01:29]} 20. Bxb5 {[%clk 0:02:46]}  Nde5 {[%clk 0:01:27]} 21. Nxe5 {[%clk 0:02:44]}  Bxe5 {[%clk 0:01:27]} 22. Nf5 {[%clk 0:02:43]}  Kh7 {[%clk 0:01:24]} 23. Bc6 {[%clk 0:02:36]}  Qc8 {[%clk 0:01:10]} 24. Bxb7 {[%clk 0:02:23]}  Qxb7 {[%clk 0:01:10]} 25. Bxg5 {[%clk 0:02:08]}  hxg5 {[%clk 0:00:46]} 26. Qxg5 {[%clk 0:02:07]}  Bg7 {[%clk 0:00:43]} 27. h4 {[%clk 0:02:00]}  Rg8 {[%clk 0:00:15]} 28. Qh5+ {[%clk 0:02:00]} 1-0


[Site "https://www.chess.com"]

[Event "Titled Tuesday Blitz August 1 Early 2023"]
[White "D`Arruda, Ricardo D."]
[Black "Shtembuliak, Evgeny"]
[WhiteFideId "100692"]
[BlackFideId "14113325"]
[WhiteElo "2461"]
[BlackElo "2857"]
[Result "1-0"]
[Round "1"]
[TimeControl "180+1"]
[Date "2023.08.01"]
[WhiteClock "0:00:06"]
[BlackClock "0:00:00"]
[Board "43"]

1. Nf3 {[%clk 0:02:58]}  Nf6 {[%clk 0:02:55]} 2. d4 {[%clk 0:02:57]}  d6 {[%clk 0:02:55]} 3. Nc3 {[%clk 0:02:57]}  g6 {[%clk 0:02:56]} 4. e4 {[%clk 0:02:57]}  Bg7 {[%clk 0:02:56]} 5. Bg5 {[%clk 0:02:56]}  a6 {[%clk 0:02:48]} 6. Qd2 {[%clk 0:02:56]}  Nc6 {[%clk 0:02:46]} 7. O-O-O {[%clk 0:02:52]}  Bg4 {[%clk 0:02:45]} 8. d5 {[%clk 0:02:47]}  Bxf3 {[%clk 0:02:39]} 9. gxf3 {[%clk 0:02:48]}  Ne5 {[%clk 0:02:38]} 10. Be2 {[%clk 0:02:47]}  c6 {[%clk 0:02:32]} 11. f4 {[%clk 0:02:44]}  Ned7 {[%clk 0:02:32]} 12. f5 {[%clk 0:02:39]}  cxd5 {[%clk 0:02:29]} 13. exd5 {[%clk 0:02:38]}  Rc8 {[%clk 0:02:28]} 14. Bh6 {[%clk 0:02:38]}  Bxh6 {[%clk 0:02:11]} 15. Qxh6 {[%clk 0:02:38]}  Rg8 {[%clk 0:02:07]} 16. fxg6 {[%clk 0:02:24]}  Rxg6 {[%clk 0:02:05]} 17. Qe3 {[%clk 0:02:23]}  Qa5 {[%clk 0:02:00]} 18. Kb1 {[%clk 0:02:18]}  Rxc3 {[%clk 0:01:55]} 19. Qxc3 {[%clk 0:02:10]}  Qxc3 {[%clk 0:01:55]} 20. bxc3 {[%clk 0:02:11]}  Ne4 {[%clk 0:01:55]} 21. Rde1 {[%clk 0:01:57]}  Nxc3+ {[%clk 0:01:51]} 22. Kb2 {[%clk 0:01:56]}  Na4+ {[%clk 0:01:41]} 23. Ka3 {[%clk 0:01:53]}  Ndc5 {[%clk 0:01:30]} 24. Rhg1 {[%clk 0:01:46]}  Nc3 {[%clk 0:00:49]} 25. Rxg6 {[%clk 0:01:38]}  hxg6 {[%clk 0:00:50]} 26. Bf3 {[%clk 0:01:33]}  a5 {[%clk 0:00:44]} 27. Kb2 {[%clk 0:01:23]}  N3a4+ {[%clk 0:00:44]} 28. Kc1 {[%clk 0:01:22]}  b5 {[%clk 0:00:42]} 29. a3 {[%clk 0:01:20]}  Nc3 {[%clk 0:00:31]} 30. h4 {[%clk 0:01:18]}  Kd8 {[%clk 0:00:31]} 31. Rh1 {[%clk 0:01:14]}  b4 {[%clk 0:00:24]} 32. axb4 {[%clk 0:01:13]}  Na2+ {[%clk 0:00:24]} 33. Kb2 {[%clk 0:01:06]}  Nxb4 {[%clk 0:00:25]} 34. h5 {[%clk 0:01:05]}  gxh5 {[%clk 0:00:25]} 35. Rxh5 {[%clk 0:01:05]}  Na4+ {[%clk 0:00:25]} 36. Kb3 {[%clk 0:01:00]}  Nc5+ {[%clk 0:00:26]} 37. Kb2 {[%clk 0:00:57]}  a4 {[%clk 0:00:21]} 38. Rh7 {[%clk 0:00:49]}  f6 {[%clk 0:00:16]} 39. Rh8+ {[%clk 0:00:46]}  Kc7 {[%clk 0:00:16]} 40. Re8 {[%clk 0:00:44]}  Kd7 {[%clk 0:00:11]} 41. Ra8 {[%clk 0:00:44]}  f5 {[%clk 0:00:11]} 42. Ra7+ {[%clk 0:00:41]}  Kd8 {[%clk 0:00:11]} 43. Kc3 {[%clk 0:00:32]}  Nba6 {[%clk 0:00:10]} 44. Be2 {[%clk 0:00:24]}  Nc7 {[%clk 0:00:10]} 45. Bc4 {[%clk 0:00:20]}  Ne4+ {[%clk 0:00:10]} 46. Kd4 {[%clk 0:00:20]}  Nxf2 {[%clk 0:00:10]} 47. Rxa4 {[%clk 0:00:20]}  Ng4 {[%clk 0:00:09]} 48. Ra1 {[%clk 0:00:19]}  Ne5 {[%clk 0:00:02]} 49. Rf1 {[%clk 0:00:20]}  Nxc4 {[%clk 0:00:01]} 50. Kxc4 {[%clk 0:00:20]}  e6 {[%clk 0:00:01]} 51. dxe6 {[%clk 0:00:19]}  Ke7 {[%clk 0:00:02]} 52. Rxf5 {[%clk 0:00:18]}  Kxe6 {[%clk 0:00:03]} 53. Rh5 {[%clk 0:00:17]}  Kd7 {[%clk 0:00:03]} 54. Kb4 {[%clk 0:00:12]}  Kc6 {[%clk 0:00:04]} 55. c4 {[%clk 0:00:12]}  Na6+ {[%clk 0:00:04]} 56. Kc3 {[%clk 0:00:12]}  Nc5 {[%clk 0:00:05]} 57. Kd4 {[%clk 0:00:12]}  Nb3+ {[%clk 0:00:06]} 58. Kc3 {[%clk 0:00:13]}  Nc5 {[%clk 0:00:07]} 59. Rh8 {[%clk 0:00:12]}  Ne4+ {[%clk 0:00:07]} 60. Kd4 {[%clk 0:00:12]}  Nf6 {[%clk 0:00:07]} 61. Rc8+ {[%clk 0:00:12]}  Kd7 {[%clk 0:00:07]} 62. Ra8 {[%clk 0:00:12]}  Kc7 {[%clk 0:00:07]} 63. Ra7+ {[%clk 0:00:12]}  Kb6 {[%clk 0:00:06]} 64. Rf7 {[%clk 0:00:11]}  Ng4 {[%clk 0:00:06]} 65. Rf4 {[%clk 0:00:07]}  Ne5 {[%clk 0:00:02]} 66. Rf6 {[%clk 0:00:07]}  Kc7 {[%clk 0:00:00]} 67. Kd5 {[%clk 0:00:06]} 1-0


[Site "https://www.chess.com"]

[Event "Titled Tuesday Blitz August 1 Early 2023"]
[White "Avazkhonov, Alikhon"]
[Black "Talibov, Shiroghlan"]
[WhiteFideId "14208504"]
[BlackFideId "13429078"]
[WhiteElo "2455"]
[BlackElo "2837"]
[Result "0-1"]
[Round "1"]
[TimeControl "180+1"]
[Date "2023.08.01"]
[WhiteClock "0:00:07"]
[BlackClock "0:01:51"]
[Board "51"]

1. d4 {[%clk 0:03:00]}  e6 {[%clk 0:02:57]} 2. Nc3 {[%clk 0:03:01]}  Bb4 {[%clk 0:02:41]} 3. e4 {[%clk 0:03:01]}  d5 {[%clk 0:02:40]} 4. e5 {[%clk 0:03:00]}  b6 {[%clk 0:02:37]} 5. Qg4 {[%clk 0:02:53]}  Kf8 {[%clk 0:02:30]} 6. h4 {[%clk 0:02:43]}  Ba6 {[%clk 0:02:28]} 7. h5 {[%clk 0:02:16]}  Nh6 {[%clk 0:02:24]} 8. Bxh6 {[%clk 0:02:09]}  gxh6 {[%clk 0:02:22]} 9. Qf4 {[%clk 0:02:09]}  Qg5 {[%clk 0:02:20]} 10. Qxg5 {[%clk 0:02:01]}  hxg5 {[%clk 0:02:20]} 11. h6 {[%clk 0:02:01]}  Bxc3+ {[%clk 0:02:16]} 12. bxc3 {[%clk 0:02:00]}  Bxf1 {[%clk 0:02:17]} 13. Kxf1 {[%clk 0:02:01]}  Ke7 {[%clk 0:02:18]} 14. Nf3 {[%clk 0:01:59]}  Rg8 {[%clk 0:02:17]} 15. g4 {[%clk 0:01:57]}  c5 {[%clk 0:02:14]} 16. Re1 {[%clk 0:01:55]}  Nd7 {[%clk 0:02:14]} 17. Rh5 {[%clk 0:01:50]}  f6 {[%clk 0:02:13]} 18. exf6+ {[%clk 0:01:46]}  Kxf6 {[%clk 0:02:14]} 19. Re3 {[%clk 0:01:10]}  Rac8 {[%clk 0:02:10]} 20. Kg2 {[%clk 0:00:49]}  a5 {[%clk 0:02:09]} 21. a3 {[%clk 0:00:21]}  a4 {[%clk 0:02:09]} 22. Kg3 {[%clk 0:00:19]}  cxd4 {[%clk 0:01:50]} 23. Nxd4 {[%clk 0:00:19]}  Ne5 {[%clk 0:01:51]} 24. f4 {[%clk 0:00:07]}  gxf4+ {[%clk 0:01:51]} 0-1


[Site "https://www.chess.com"]